{"text_format":"1","workbook":"xlsx","n_sheets":19,"sheets":["ВПА_Застава_СТ","ППА","queries","deal","coll1","legalwork","deal_doc","coll2","coll3","coll4","coll5","coll6","coll7","guar1","guar2","guar3","guar4","guar5","журнал торгів"],"not_rendered":{"charts":0,"images":1,"macros":1,"external_links":0,"defined_names":15,"comments":0,"pivot_tables":0},"unopened":[],"bounds":{"document_bytes":16777216,"sheet_cells":100000,"rows_first":2000,"rows_last":500,"rows_between":2000,"halvings":0,"cell_chars":16384,"cell_head_chars":4096},"cells_cut":0,"cells_raw":0,"read":"whole","date_system":"1900"}

{"sheet":"ВПА_Застава_СТ","index":0,"n_rows":124,"n_cols":2,"rows_kept":124,"cut":false,"hidden":true,"merged":[[111,0,117,1],[42,0,42,1],[47,0,47,1],[48,0,54,1],[63,0,63,1],[68,0,68,1],[69,0,75,1],[84,0,84,1],[89,0,89,1],[90,0,96,1],[105,0,105,1],[110,0,110,1],[27,0,33,1],[0,0,0,1],[5,0,5,1],[6,0,12,1],[21,0,21,1],[26,0,26,1]]}
["7. Інформація про заставу***"]
["Наявність застави (так / ні)",{"$f":"deal!$AA$2","v":"так"}]
["Діє мораторій на стягнення майна (так / ні)",{"$f":"coll1!$C$2","v":"Ні"}]
["Номер договору застави",{"$f":"coll1!$D$2","v":3423655}]
["Тип застави*",{"$f":"coll1!$E$2","v":"Нерухоме майно, що належить до житлового фонду"}]
["Детальний опис застави*"]
[{"$f":"coll1!$F$2","v":"Квартира; ДНІПРОПЕТРОВСЬКА ОБЛ., ДНІПРОПЕТРОВСЬК, ЖОВТНЕВИЙ, просп. Героїв, 12, 1016(45,4/27,4)"}]
[]
[]
[]
[]
[]
[]
["Застава реалізована (так / ні)"]
["Заставу прийнято на баланс банку (так / ні)"]
["Вартість застави на момент видачі кредиту, грн"]
["Дата останньої перевірки предмета застави*",{"$f":"IF(coll1!$G$2=\"\",\"\",coll1!$G$2)","v":"2015-10-21"}]
["Дата останньої оцінки",{"$f":"IF(coll1!$H$2=\"\",\"\",coll1!$H$2)","v":"2015-11-05"}]
["Оцінка вартості застави, грн",{"$f":"coll1!$I$2","v":738584.82}]
[]
[]
["7. Інформація про заставу***"]
["Наявність застави (так / ні)",{"$f":"deal!$AA$2","v":"так"}]
["Діє мораторій на стягнення майна (так / ні)",{"$f":"IF(coll1!$C$3=\"\",\"\",coll1!$C$3)","v":""}]
["Номер договору застави",{"$f":"IF(coll1!$D$3=\"\",\"\",coll1!$D$3)","v":""}]
["Тип застави*",{"$f":"IF(coll1!$E$3=\"\",\"\",coll1!$E$3)","v":""}]
["Детальний опис застави*"]
[{"$f":"IF(coll1!$F$3=\"\",\"\",coll1!$F$3)","v":""}]
[]
[]
[]
[]
[]
[]
["Застава реалізована (так / ні)"]
["Заставу прийнято на баланс банку (так / ні)"]
["Вартість застави на момент видачі кредиту, грн"]
["Дата останньої перевірки предмета застави*",{"$f":"IF(coll1!$G$3=\"\",\"\",coll1!$G$3)","v":""}]
["Дата останньої оцінки",{"$f":"IF(coll1!$H$3=\"\",\"\",coll1!$H$3)","v":""}]
["Оцінка вартості застави, грн",{"$f":"IF(coll1!$I$3=\"\",\"\",coll1!$I$3)","v":""}]
[]
[]
["7. Інформація про заставу***"]
["Наявність застави (так / ні)",{"$f":"deal!$AA$2","v":"так"}]
["Діє мораторій на стягнення майна (так / ні)",{"$f":"IF(coll1!$C$4=\"\",\"\",coll1!$C$4)","v":""}]
["Номер договору застави",{"$f":"IF(coll1!$D$4=\"\",\"\",coll1!$D$4)","v":""}]
["Тип застави*",{"$f":"IF(coll1!$E$4=\"\",\"\",coll1!$E$4)","v":""}]
["Детальний опис застави*"]
[{"$f":"IF(coll1!$F$4=\"\",\"\",coll1!$F$4)","v":""}]
[]
[]
[]
[]
[]
[]
["Застава реалізована (так / ні)"]
["Заставу прийнято на баланс банку (так / ні)"]
["Вартість застави на момент видачі кредиту, грн"]
["Дата останньої перевірки предмета застави*",{"$f":"IF(coll1!$G$4=\"\",\"\",coll1!$G$4)","v":""}]
["Дата останньої оцінки",{"$f":"IF(coll1!$H$4=\"\",\"\",coll1!$H$4)","v":""}]
["Оцінка вартості застави, грн",{"$f":"IF(coll1!$I$4=\"\",\"\",coll1!$I$4)","v":""}]
[]
[]
["7. Інформація про заставу***"]
["Наявність застави (так / ні)",{"$f":"deal!$AA$2","v":"так"}]
["Діє мораторій на стягнення майна (так / ні)",{"$f":"IF(coll1!$C$5=\"\",\"\",coll1!$C$5)","v":""}]
["Номер договору застави",{"$f":"IF(coll1!$D$5=\"\",\"\",coll1!$D$5)","v":""}]
["Тип застави*",{"$f":"IF(coll1!$E$5=\"\",\"\",coll1!$E$5)","v":""}]
["Детальний опис застави*"]
[{"$f":"IF(coll1!$F$5=\"\",\"\",coll1!$F$5)","v":""}]
[]
[]
[]
[]
[]
[]
["Застава реалізована (так / ні)"]
["Заставу прийнято на баланс банку (так / ні)"]
["Вартість застави на момент видачі кредиту, грн"]
["Дата останньої перевірки предмета застави*",{"$f":"IF(coll1!$G$5=\"\",\"\",coll1!$G$5)","v":""}]
["Дата останньої оцінки",{"$f":"IF(coll1!$H$5=\"\",\"\",coll1!$H$5)","v":""}]
["Оцінка вартості застави, грн",{"$f":"IF(coll1!$I$5=\"\",\"\",coll1!$I$5)","v":""}]
[]
[]
["7. Інформація про заставу***"]
["Наявність застави (так / ні)",{"$f":"deal!$AA$2","v":"так"}]
["Діє мораторій на стягнення майна (так / ні)",{"$f":"IF(coll1!$C$6=\"\",\"\",coll1!$C$6)","v":""}]
["Номер договору застави",{"$f":"IF(coll1!$D$6=\"\",\"\",coll1!$D$6)","v":""}]
["Тип застави*",{"$f":"IF(coll1!$E$6=\"\",\"\",coll1!$E$6)","v":""}]
["Детальний опис застави*"]
[{"$f":"IF(coll1!$F$6=\"\",\"\",coll1!$F$6)","v":""}]
[]
[]
[]
[]
[]
[]
["Застава реалізована (так / ні)"]
["Заставу прийнято на баланс банку (так / ні)"]
["Вартість застави на момент видачі кредиту, грн"]
["Дата останньої перевірки предмета застави*",{"$f":"IF(coll1!$G$6=\"\",\"\",coll1!$G$6)","v":""}]
["Дата останньої оцінки",{"$f":"IF(coll1!$H$6=\"\",\"\",coll1!$H$6)","v":""}]
["Оцінка вартості застави, грн",{"$f":"IF(coll1!$I$6=\"\",\"\",coll1!$I$6)","v":""}]
[]
[]
["7. Інформація про заставу***"]
["Наявність застави (так / ні)",{"$f":"deal!$AA$2","v":"так"}]
["Діє мораторій на стягнення майна (так / ні)",{"$f":"IF(coll1!$C$7=\"\",\"\",coll1!$C$7)","v":""}]
["Номер договору застави",{"$f":"IF(coll1!$D$7=\"\",\"\",coll1!$D$7)","v":""}]
["Тип застави*",{"$f":"IF(coll1!$E$7=\"\",\"\",coll1!$E$7)","v":""}]
["Детальний опис застави*"]
[{"$f":"IF(coll1!$F$7=\"\",\"\",coll1!$F$7)","v":""}]
[]
[]
[]
[]
[]
[]
["Застава реалізована (так / ні)"]
["Заставу прийнято на баланс банку (так / ні)"]
["Вартість застави на момент видачі кредиту, грн"]
["Дата останньої перевірки предмета застави*",{"$f":"IF(coll1!$G$7=\"\",\"\",coll1!$G$7)","v":""}]
["Дата останньої оцінки",{"$f":"IF(coll1!$H$7=\"\",\"\",coll1!$H$7)","v":""}]
["Оцінка вартості застави, грн",{"$f":"IF(coll1!$I$7=\"\",\"\",coll1!$I$7)","v":""}]

{"sheet":"ППА","index":1,"n_rows":27,"n_cols":8,"rows_kept":27,"cut":false,"hidden":false,"merged":[[0,0,0,7],[4,0,4,1],[4,6,4,7],[6,6,6,7],[7,6,21,7],[19,0,19,1],[4,3,4,4],[10,3,10,4],[6,4,7,4],[6,3,7,3],[11,3,15,4],[22,6,22,7],[23,6,23,7],[19,3,19,4],[25,3,26,3],[25,4,26,4],[23,3,23,4]]}
["Публічний паспорт активу (права вимоги фізичних осіб – індивідуальні позичальники)"]
[]
["Дата формування","2018-01-01"]
[]
["1. Інформація про кредит ",null,null,"3. Інформація про заставу",null,null,"6. Претензійно-позовна робота та примусове стягнення"]
["Назва банку","ПУАТ «ФІДОБАНК»",null,"Наявність застави (так / ні)","Так",null,"Поточна стадія претензійно-позовної роботи","Позов до суду не подано"]
["МФО банку","300175",null,"Діє закон про мораторій на стягнення майна (так / ні)","Ні",null,"Опис претензійно-позовної роботи"]
["Номер кредитного договору","014/3729/2/16805",null,null,null,null,"Детальну інформацію буде надано після підписання договору про нерозголошення конфіденційної інформації"]
["Дата отримання кредиту","2008-06-03",null,"Номер договору застави","014/3729/2/16805/1"]
["Дата погашення кредиту","2028-06-02",null,"Тип застави","квартира"]
["Валюта кредиту",980,null,"Опис застави"]
["Сума видачі (у валюті кредиту)",75105,null,"2-кімнатна квартира, загальною площею 45,4 кв м, за адресою: м. Дніпропетровськ, пр. Героїв, буд.12"]
["Ставка відсотків",12.5]
["Ставка комісій",""]
["Тип кредитного продукту","Заставний"]
["Цільове призначення","Придбання квартири"]
["Регіон видачі (область)","Дніпропетровська область",null,"Застава реалізована (так / ні)","ні"]
["Зона АТО або Крим","Інше",null,"Вартість застави на момент видачі кредиту, грн",455328]
[]
["2. Залишок заборгованості на дату формування",null,null,"4. Інформація про поручителя"]
["Загальний залишок заборгованості (без штрафів та пені), грн ",2632095.84,null,"Наявність поручителя (так / ні)","Ні"]
["Залишок по тілу кредиту, грн",2428478.6,null,"Вид поруки (майнова / фінансова)","Н/Д"]
["Залишок по процентам, грн",203617.24]
["Залишок по комісіям, грн",0,null,"5. Додаткова інформація",null,null,"7. Оцінка вартості кредиту"]
["Залишок по пеням і штрафам, грн",56502.64,null,"Смерть боржника (так / ні)","ні",null,"Назва компанії оцінщика","ТОВ «Верітас Проперті Менеджмент»"]
["Залишок заборгованості у валюті кредиту (без штрафів та пені)",2632095.84,null,"Інша інформація та примітки","Проведено реструктуризацію шляхом зміни валюти кредитування з доларів США на гривню",null,"Дата оцінки вартості кредиту","2016-11-01"]
["Дата останнього платежу","2016-03-01",null,null,null,null,"Оціночна вартість кредиту, грн",479126.93]

{"sheet":"queries","index":2,"n_rows":16,"n_cols":2,"rows_kept":16,"cut":false,"hidden":true,"merged":[]}
["FIDO_HD.deals","select * from risk.risk_viw_deal_passport t where t.deal_b2_id=$deal_id$"]
["FIDO_HD.coll1","select * from(\nselect rownum nb, t.* \nfrom risk.risk_viw_coll_passport t where t.DEAL_B2_ID=$deal_id$\norder by t.COLL_DEAL_ID)tt\nwhere tt.nb=1"]
["FIDO_HD.coll2","select * from(\nselect rownum nb, t.* \nfrom risk.risk_viw_coll_passport t where t.DEAL_B2_ID=$deal_id$\norder by t.COLL_DEAL_ID)tt\nwhere tt.nb=2"]
["FIDO_HD.coll3","select * from(\nselect rownum nb, t.* \nfrom risk.risk_viw_coll_passport t where t.DEAL_B2_ID=$deal_id$\norder by t.COLL_DEAL_ID)tt\nwhere tt.nb=3"]
["FIDO_HD.coll4","select * from(\nselect rownum nb, t.* \nfrom risk.risk_viw_coll_passport t where t.DEAL_B2_ID=$deal_id$\norder by t.COLL_DEAL_ID)tt\nwhere tt.nb=4"]
["FIDO_HD.coll5","select * from(\nselect rownum nb, t.* \nfrom risk.risk_viw_coll_passport t where t.DEAL_B2_ID=$deal_id$\norder by t.COLL_DEAL_ID)tt\nwhere tt.nb=5"]
["FIDO_HD.coll6","select * from(\nselect rownum nb, t.* \nfrom risk.risk_viw_coll_passport t where t.DEAL_B2_ID=$deal_id$\norder by t.COLL_DEAL_ID)tt\nwhere tt.nb=6"]
["FIDO_HD.coll7","select * from(\nselect rownum nb, t.* \nfrom risk.risk_viw_coll_passport t where t.DEAL_B2_ID=$deal_id$\norder by t.COLL_DEAL_ID)tt\nwhere tt.nb=7"]
["FIDO_HD.guar1","select * from(\nselect rownum nb, t.* \nfrom risk.risk_viw_guar_passport t where t.DEAL_B2_ID=$deal_id$\norder by t.COLL_DEAL_ID)tt\nwhere tt.nb=1"]
["FIDO_HD.guar2","select * from(\nselect rownum nb, t.* \nfrom risk.risk_viw_guar_passport t where t.DEAL_B2_ID=$deal_id$\norder by t.COLL_DEAL_ID)tt\nwhere tt.nb=2"]
["FIDO_HD.guar3","select * from(\nselect rownum nb, t.* \nfrom risk.risk_viw_guar_passport t where t.DEAL_B2_ID=$deal_id$\norder by t.COLL_DEAL_ID)tt\nwhere tt.nb=3"]
["FIDO_HD.guar4","select * from(\nselect rownum nb, t.* \nfrom risk.risk_viw_guar_passport t where t.DEAL_B2_ID=$deal_id$\norder by t.COLL_DEAL_ID)tt\nwhere tt.nb=4"]
["FIDO_HD.guar5","select * from(\nselect rownum nb, t.* \nfrom risk.risk_viw_guar_passport t where t.DEAL_B2_ID=$deal_id$\norder by t.COLL_DEAL_ID)tt\nwhere tt.nb=5"]
["FIDO_HD.legalwork","select * from risk.risk_viw_passport_legalwork_ag t where t.DEAL_B2_ID=$deal_id$"]
["FIDO_HD.log","insert into risk.risk_passport_request_log(deal_b2_id, user_login) values($deal_id$,'$user_login$')"]
["FIDO_HD.deal_docs","select * from risk.risk_viw_passport_deal_doc t where t.DEAL_B2_ID=$deal_id$"]

{"sheet":"deal","index":3,"n_rows":2,"n_cols":42,"rows_kept":2,"cut":false,"hidden":true,"merged":[]}
["DEAL_B2_ID","DEAL_ID","ARCDATE","1","2","3","4","5","6","7","8","10","11","12","13","15","16","17","18","19","20","33","34","35","36","37","41","52","EST_COMPANY_NAME","EST_AMOUNT","EST_DATE","REST_AMOUNT_EST","REST_AMOUNT_LIQ","LIQ_AMOUNT","LIQ_DATE","LAST_PAYM_DATE","LAST_PAYM_AMOUNT","CURR_YEAR_PAYM_AMOUNT","PREV_YEAR_PAYM_AMOUNT","PAYM_AMOUNT_TOTAL","FEE_RATE","NBU_COLL"]
[3422636,9463156,"2017-04-01","ПУАТ «ФІДОБАНК»","300175",".014/3729/2/16805","2008-06-03","2028-06-02",840,75105,12.5,"Заставний","Іпотека","Дніпропетровська область","Інше",2517741.15,2428478.6,89262.55,0,11204.65,null,212,"Болясний Павло Данєвич","3117214759","Дніпропетровська обл.,,м. Дніпропетровськ,пр.Героїв,буд.4,,кв.32","Дніпропетровська обл.,,м. Дніпропетровськ,пр.Героїв,буд.4,,кв.32","так","ні","ТОВ «Верітас Проперті Менеджмент»",479126.93,"2016-11-01",2521761.69,2521761.69,479126.93,"2016-11-01","2016-03-01",1,0,1,31278.2,0,"Ні"]

{"sheet":"coll1","index":4,"n_rows":2,"n_cols":15,"rows_kept":2,"cut":false,"hidden":true,"merged":[]}
["DEAL_ID","DEAL_B2_ID","42","43","44","45","49","50","51","COLL_DEAL_ID","COLL_DEAL_B2_ID","ARCDATE","DEAL_NO","SIMPLE_CODE","NB"]
[9463156,3422636,"Ні",3423655,"Нерухоме майно, що належить до житлового фонду","Квартира; ДНІПРОПЕТРОВСЬКА ОБЛ., ДНІПРОПЕТРОВСЬК, ЖОВТНЕВИЙ, просп. Героїв, 12, 1016(45,4/27,4)","2015-10-21","2015-11-05",738584.82,9465439,3423655,"2017-04-01",".014/3729/2/16805",".014/3729/2/16805_3423655",1]

{"sheet":"legalwork","index":5,"n_rows":2,"n_cols":15,"rows_kept":2,"cut":false,"hidden":true,"merged":[]}
["ARCDATE","DEAL_ID","DEAL_B2_ID","DEAL_NO","COLL_DEAL_ID","COLL_DEAL_B2_ID","LIMITATION_PERIOD_DATE","CUR_STAGE","STAGE_DESC","LEGAL_OPINION","PRE_TRIAL_AGR_FLAG","PRE_TRIAL_AGR_DESC","INTERNAL_DRS_WORK","EXTERNAL_DRS_WORK","SIMPLE_CODE"]
["2017-04-01 00:00:00 | 2017-04-01 00:00:00 | 2017-04-01 00:00:00","9463156 | 9463156 | 9463156",3422636,".014/3729/2/16805 | .014/3729/2/16805 | .014/3729/2/16805","9465439 | 9465439 | 9465439","3423655 | 3423655 | 3423655","3423655: 02.06.2031 | 3423655: 02.06.2031 | 3423655: 02.06.2031","3423655: Не було подачі в суд | 3423655: Не було подачі в суд | 3423655: Не було подачі в суд","3423655: робота не проводилась, Досудебна стадія, принуд.конвертирован. | 3423655: робота не проводилась, Досудебна стадія, принуд.конвертирован. | 3423655: робота не проводилась, Досудебна стадія, принуд.конвертирован.","3423655: високий | 3423655: високий | 3423655: високий","3423655: так | 3423655: так | 3423655: так","3423655: готовий | 3423655: готовий | 3423655: готовий","3423655: так | 3423655: так | 3423655: так","3423655: відсутня | 3423655: відсутня | 3423655: відсутня",".014/3729/2/16805_3423655 | .014/3729/2/16805_3423655 | .014/3729/2/16805_3423655"]

{"sheet":"deal_doc","index":6,"n_rows":2,"n_cols":8,"rows_kept":2,"cut":false,"hidden":true,"merged":[]}
["DEAL_B2_ID","DEAL_ID","CREDIT_CONTRACT","COLL_CONTRACT","GUARANTEE_CONTRACT","SPOUSE_AGR","CREDIT_STATEMENT","BORROWERS_PERMIT"]
[3422636,9463156,"так","так","ні"]

{"sheet":"coll2","index":7,"n_rows":1,"n_cols":15,"rows_kept":1,"cut":false,"hidden":true,"merged":[]}
["ARCDATE","DEAL_ID","DEAL_B2_ID","DEAL_NO","COLL_DEAL_ID","COLL_DEAL_B2_ID","42","43","44","45","49","50","51","SIMPLE_CODE","NB"]

{"sheet":"coll3","index":8,"n_rows":1,"n_cols":15,"rows_kept":1,"cut":false,"hidden":true,"merged":[]}
["ARCDATE","DEAL_ID","DEAL_B2_ID","DEAL_NO","COLL_DEAL_ID","COLL_DEAL_B2_ID","42","43","44","45","49","50","51","SIMPLE_CODE","NB"]

{"sheet":"coll4","index":9,"n_rows":1,"n_cols":15,"rows_kept":1,"cut":false,"hidden":true,"merged":[]}
["ARCDATE","DEAL_ID","DEAL_B2_ID","DEAL_NO","COLL_DEAL_ID","COLL_DEAL_B2_ID","42","43","44","45","49","50","51","SIMPLE_CODE","NB"]

{"sheet":"coll5","index":10,"n_rows":1,"n_cols":15,"rows_kept":1,"cut":false,"hidden":true,"merged":[]}
["ARCDATE","DEAL_ID","DEAL_B2_ID","DEAL_NO","COLL_DEAL_ID","COLL_DEAL_B2_ID","42","43","44","45","49","50","51","SIMPLE_CODE","NB"]

{"sheet":"coll6","index":11,"n_rows":1,"n_cols":15,"rows_kept":1,"cut":false,"hidden":true,"merged":[]}
["ARCDATE","DEAL_ID","DEAL_B2_ID","DEAL_NO","COLL_DEAL_ID","COLL_DEAL_B2_ID","42","43","44","45","49","50","51","SIMPLE_CODE","NB"]

{"sheet":"coll7","index":12,"n_rows":1,"n_cols":15,"rows_kept":1,"cut":false,"hidden":true,"merged":[]}
["ARCDATE","DEAL_ID","DEAL_B2_ID","DEAL_NO","COLL_DEAL_ID","COLL_DEAL_B2_ID","42","43","44","45","49","50","51","SIMPLE_CODE","NB"]

{"sheet":"guar1","index":13,"n_rows":1,"n_cols":16,"rows_kept":1,"cut":false,"hidden":true,"merged":[]}
["DEAL_ID","DEAL_B2_ID","COLL_DEAL_ID","COLL_DEAL_B2_ID","43","45","53","54","55","56","57","58","59","ARCDATE","SIMPLE_CODE","NB"]

{"sheet":"guar2","index":14,"n_rows":1,"n_cols":16,"rows_kept":1,"cut":false,"hidden":true,"merged":[]}
["ARCDATE","DEAL_ID","DEAL_B2_ID","COLL_DEAL_ID","COLL_DEAL_B2_ID","43","45","53","54","55","56","57","58","59","SIMPLE_CODE","NB"]

{"sheet":"guar3","index":15,"n_rows":1,"n_cols":16,"rows_kept":1,"cut":false,"hidden":true,"merged":[]}
["ARCDATE","DEAL_ID","DEAL_B2_ID","COLL_DEAL_ID","COLL_DEAL_B2_ID","43","45","53","54","55","56","57","58","59","SIMPLE_CODE","NB"]

{"sheet":"guar4","index":16,"n_rows":1,"n_cols":16,"rows_kept":1,"cut":false,"hidden":true,"merged":[]}
["ARCDATE","DEAL_ID","DEAL_B2_ID","COLL_DEAL_ID","COLL_DEAL_B2_ID","43","45","53","54","55","56","57","58","59","SIMPLE_CODE","NB"]

{"sheet":"guar5","index":17,"n_rows":1,"n_cols":16,"rows_kept":1,"cut":false,"hidden":true,"merged":[]}
["ARCDATE","DEAL_ID","DEAL_B2_ID","COLL_DEAL_ID","COLL_DEAL_B2_ID","43","45","53","54","55","56","57","58","59","SIMPLE_CODE","NB"]

{"sheet":"журнал торгів","index":18,"n_rows":10,"n_cols":6,"rows_kept":10,"cut":false,"hidden":false,"merged":[[0,0,0,5]]}
["Журнал торгів"]
["№","Дата проведення","Торгуюча організація","Початкова вартість, грн","Ціна продажу, грн","Коментар"]
[1,"2017-07-04","ТОВ «Держзакупівлі.Онлайн»","2 517 741.15"]
[2," 18.07.2017","ТОВ «Держзакупівлі.Онлайн»","2 265 967.04"]
[3," 01.08.2017","ТОВ «Держзакупівлі.Онлайн»","2 014 192.92"]
[4," 15.08.2017","ТОВ «Держзакупівлі.Онлайн»","1 762 418.81"]
[5,"2017-08-30","ТОВ «Держзакупівлі.Онлайн»","1 510 644.69"]
[6,"2017-09-13","ТОВ «Держзакупівлі.Онлайн»","1 258 870.58"]
[7," 27.09.2017","ТОВ «Держзакупівлі.Онлайн»","1 007 096.46"]
[8,"2017-10-11","ТОВ «Держзакупівлі.Онлайн»","755 322.35"]